Cogmind - Beta 14 @@@ ROGUE MODE // 2024.11.26 @ 10:41:26 Player: Fangrelle Result: Destroyed by FE-TFC(R) with Subdweller Beam Cannon Performance ------------- Evolutions (0) 0 Regions Visited (2) 400 Robots Destroyed (41) 205 Value Destroyed (893) 893 Prototype IDs (1) 20 Alien Tech Used (0) 0 Bonus (0) 0 TOTAL SCORE: 1518 Bonus ------- None Cogmind --------- Core Integrity 0/250 Matter 226/300 Energy 265/265 System Corruption 0% Temperature Cool (9) Movement Rolling (175) Ox5 Location -10/Subcaves Parts ------- > --- POWER (1) -------- Improved Ion Engine > --- PROPULSION (2) --- Light Treads Compact Wheel > --- UTILITY (2) ------ Huge Storage Unit Core Shielding > --- WEAPON (2) ------- EM Pulse Gun EM Pulse Gun > --- INVENTORY (25) --- Improved Ion Engine Improved Ion Engine Aluminum Leg Compact Wheel Cooling System High-capacity Storage Unit Humpback Humpback Medium Matter Pod (100) Terrain Scanner Seismic Detector Utility Shielding Makeshift Hacking Suite Tractor Beam Improved Light Cannon Improved Light Cannon Improved Light Cannon Grenade Launcher Grenade Launcher Datajack Piercing Trap Peak State ------------ > --- POWER ------------ Improved Ion Engine > --- PROPULSION ------- Light Treads Light Treads > --- UTILITY ---------- Huge Storage Unit Hacking Suite > --- WEAPON ----------- Improved Medium Laser Improved Light Cannon > --- INVENTORY -------- Improved Ion Engine Improved Ion Engine Aluminum Leg Aluminum Leg Wheel Cooling System High-capacity Storage Unit Small Matter Pod Terrain Scanner Seismic Detector ECM Suite Core Shielding Utility Shielding Tractor Beam EM Pulse Gun EM Pulse Gun Assault Rifle Assault Rifle Improved Light Cannon Improved Light Cannon Improved Light Cannon Grenade Launcher Grenade Launcher Datajack Mining Laser [Rating: 16] Favorites ----------- Power Improved Ion Engine Engine Improved Ion Engine Propulsion Aluminum Leg Treads Light Treads Leg Aluminum Leg Wheel Compact Wheel Utility Huge Storage Unit Device Terrain Scanner Storage Huge Storage Unit Hackware Hacking Suite Protection Core Shielding Weapon EM Pulse Gun Energy Gun EM Pulse Gun Ballistic Gun Assault Rifle Ballistic Cannon Improved Light Cannon Launcher Grenade Launcher Special Weapon Mining Laser Special Melee Weapon Datajack Build | -11 -10 -10 ------- Run | Yrd Mat Sub Slots Evolved . | . . . Power . | . . . Propulsion . | . . . Utility . | . . . Weapon . | . . . Parts Attached 47 | . 24 23 Power 4 | . 4 . Engine 4 | . 4 . Core . | . . . Reactor . | . . . Propulsion 8 | . 4 4 Treads 3 | . 2 1 Leg 2 | . . 2 Wheel 3 | . 2 1 Hover . | . . . Flight . | . . . Utility 9 | . 5 4 Device 3 | . 1 2 Storage 1 | . 1 . Processor . | . . . Hackware 1 | . 1 . Protection 4 | . 2 2 Artifact . | . . . Weapon 26 | . 11 15 Energy Gun 10 | . 1 9 Energy Cannon . | . . . Ballistic Gun 4 | . 4 . Ballistic Cannon 7 | . 3 4 Launcher 2 | . 2 . Special Weapon 2 | . 1 1 Impact Weapon . | . . . Slashing Weapon . | . . . Piercing Weapon . | . . . Special Melee Weapon 1 | . . 1 Unidentified Prototypes 1 | . 1 . Parts Lost 6 | . 1 5 Power . | . . . Propulsion 2 | . 1 1 Utility 1 | . . 1 Weapon 3 | . . 3 Highest Loss Streak 2 | . 1 2 To Critical Strikes . | . . . Average Slot Usage (%) 99 | . 99 99 Engine 14 | . 14 14 Treads 10 | . 25 4 Leg 12 | . . 18 Wheel 4 | . 2 5 Device 4 | . 1 5 Storage 14 | . 14 14 Hackware 3 | . 11 . Protection 6 | . 1 8 Energy Gun 14 | . . 20 Ballistic Gun 4 | . 14 . Ballistic Cannon 5 | . 7 4 Launcher 1 | . 4 . Special Melee Weapon 1 | . . 2 Peak Build Rating 16 | 6 16 13 Average Rating 11 | 6 12 11 On Entrance 8 | 6 6 13 Naked Turns . | . . . Heaviest Build 96 | 11 96 96 Greatest Support 40 | 20 40 20 Greatest Overweight (x) 5 | . 4 5 Average Overweight (x) 3 | . 2 4 Largest Inventory Capacity 25 | 8 25 25 Average Capacity 24 | 8 23 25 Most Carried 25 | 6 25 25 Average Carried 23 | 6 21 24 Final Capacity 25 | 8 25 25 Final Carried 25 | 6 25 23 Class Distribution -------------------- 100% | Mutant Dominant Class ---------------- Mutant | -10/Materials Mutant | -10/Subcaves Resources | -11 -10 -10 ----------- Run | Yrd Mat Sub Matter Collected 1395 | 200 589 606 Remotely 619 | . 302 317 Salvage Created 936 | . 593 343 Parts 72 | . 47 25 Haulers Intercepted 2 | . 2 . Recyclers Shooed . | . . . Parts Field Recycled . | . . . Retrieved Matter . | . . . Parts Self-Destructed 7 | . . 7 Prevented . | . . . Kills | -11 -10 -10 ------- Run | Yrd Mat Sub Combat Hostiles Destroyed 26 | . 15 11 Guns 7 | . 3 4 Cannons 9 | . 3 6 AOE 9 | . 9 . Classes Destroyed 9 | . 8 1 Worker 5 | . 5 . Builder 2 | . 2 . Hauler 2 | . 2 . Recycler 2 | . 2 . Operator 1 | . 1 . Watcher 3 | . 3 . Swarmer 9 | . 9 . Grunt 8 | . 6 2 Subdweller 9 | . . 9 Best Kill Streak 4 | . 4 2 Combat Bots Only 3 | . 3 2 Max Kills in Single Turn 3 | . 3 1 Gunslinging . | . . . Exploded 3 | . 3 . Melee . | . . . Uniques/NPCs Destroyed . | . . . Combat | -11 -10 -10 -------- Run | Yrd Mat Sub Hostile Shots Fired 141 | . 92 49 Missed 36 | . 24 12 Damage Taken 1623 | . 730 893 Core 272 | . 127 145 Absorbed by Shields . | . . . Redirected to Shielding 39 | . 5 34 Regen/Repaired (Parts) 1 | . 1 . Core Remaining (%) 100 | 100 . . Volleys Fired 137 | . 69 68 Largest 2 | . 2 2 Hottest 100 | . 100 100 Shots Fired 227 | . 120 107 Gun 97 | . 62 35 Cannon 102 | . 34 68 Launcher 14 | . 14 . Special 14 | . 10 4 Kinetic 163 | . 95 68 Thermal 14 | . 10 4 Explosive 14 | . 14 . Electromagnetic 36 | . 1 35 Robot Hit Streak 15 | . 15 8 Robot Miss Streak 6 | . 6 4 Penetration Max . | . . . Secondary Targets . | . . . Shots Hit Robots 121 | . 67 54 Core Hits 61 | . 41 20 Critical Kills . | . . . Critical Parts Destroyed . | . . . Critical Strikes 1 | . . 1 Blast 1 | . . 1 Melee Attacks . | . . . Impact . | . . . Slashing . | . . . Piercing . | . . . Sneak Attacks . | . . . Combat Hostiles . | . . . Follow-up Attacks . | . . . Damage Inflicted 2614 | . 1740 874 Guns 785 | . 501 284 Cannons 1025 | . 435 590 Explosions 804 | . 804 . Melee . | . . . Ramming . | . . . Kinetic 1511 | . 921 590 Thermal 82 | . 82 . Explosive 722 | . 722 . Electromagnetic 299 | . 15 284 Impact . | . . . Slashing . | . . . Piercing . | . . . Highest Corruption . | . . . Average Corruption . | . . . Corruption Purged . | . . . Corruption Blocked . | . . . Overload Shots . | . . . Overflow Damage 20 | . 20 . Projectiles . | . . . Explosions 20 | . 20 . Melee . | . . . Knockbacks 5 | . 1 4 Impact . | . . . Kinetic 5 | . 1 4 Secondary . | . . . Self-Inflicted Damage 131 | . 131 . Shots 8 | . 8 . Rammed . | . . . Targets Rammed . | . . . Kicked . | . . . Crushed . | . . . Highest Temperature 147 | . 147 . Average Temperature 40 | . 40 . Received Heat Transfer 237 | . 93 144 Siege Activations . | . . . Robots Corrupted 1 | . . 1 Combat Hostiles 1 | . . 1 Parts Fried 2 | . . 2 Impact Corruptions . | . . . Robots Melted . | . . . Combat Hostiles . | . . . Parts Melted . | . . . Heat Transferred 50 | . 50 . Parts Sabotaged . | . . . Parts Stolen . | . . . Parts Stripped . | . . . Power Chain Reactions . | . . . Alert | -11 -10 -10 ------- Run | Yrd Mat Sub Peak Influence 262 | . 262 . Initial . | . . . Average 66 | . 66 . Maximum Alert Level 1 | . 1 . Low Security (%) 98 | 100 98 . Level 1 1 | . 1 . Level 2 . | . . . Level 3 . | . . . Level 4 . | . . . Level 5 . | . . . High Security . | . . . Max Security . | . . . Squads Dispatched 3 | . 3 . Investigation 3 | . 3 . Extermination . | . . . Reinforcement . | . . . Assault . | . . . Garrison . | . . . Intercept . | . . . Searches Triggered . | . . . Construction Impeded . | . . . Haulers Reinforced . | . . . Active Scanning Responses . | . . . Cargo Convoy Interrupts . | . . . Stealth | -11 -10 -10 --------- Run | Yrd Mat Sub Distress Signals 1 | . 1 . Communications Jammed . | . . . Distress Signals . | . . . Times Spotted 32 | . 19 13 Peak Tracking Total 5 | . 5 2 Tactical Retreats . | . . . Traps | -11 -10 -10 ------- Run | Yrd Mat Sub Traps Triggered 3 | . 1 2 Indirectly . | . . . Trap Hack Attempts 64 | . . 64 Triggered . | . . . Disarmed . | . . . Reprogrammed 5 | . . 5 Reused . | . . . Traps Extracted . | . . . Installed . | . . . Triggered . | . . . Most Traps Carried 1 | . . 1 Machines | -11 -10 -10 ---------- Run | Yrd Mat Sub Machines Disabled 5 | . 5 . Max in Single Turn 2 | . 2 . Machines Repaired . | . . . Machines Dismantled . | . . . Machines Sabotaged . | . . . Overloaded Fab Kills . | . . . Hacking | -11 -10 -10 --------- Run | Yrd Mat Sub Machines Accessed 12 | . 11 1 Terminals 8 | . 8 . Fabricators . | . . . Repair Stations 1 | . 1 . Recycling Units 2 | . 2 . Scanalyzers . | . . . Garrison Access . | . . . Total Hacks 53 | . 48 5 Successful 39 | . 34 5 Failed 13 | . 13 . Catastrophic 1 | . 1 . Database Lockouts 1 | . 1 . Manual 34 | . 34 . Terminals 41 | . 41 . Fabricators . | . . . Repair Stations 2 | . 2 . Recycling Units 5 | . 5 . Scanalyzers . | . . . Garrison Access . | . . . Terminal Hacks 17 | . 12 5 Record 8 | . 3 5 Robot Analysis 2 | . 2 . Emergency Access Points 1 | . 1 . Terminal Index 1 | . 1 . Alert Level 1 | . 1 . Maintenance Status 1 | . 1 . Recall Investigation 1 | . 1 . Hauler Manifests 1 | . 1 . Zone Layout 1 | . 1 . Fabricator Hacks . | . . . Repair Station Hacks 2 | . 2 . Scan Component 1 | . 1 . Repair 1 | . 1 . Recycling Unit Hacks 2 | . 2 . Retrieve Components 2 | . 2 . Scanalyzer . | . . . Garrison Access Hacks . | . . . Unauthorized Hacks 18 | . 18 . Terminals 16 | . 16 . Track 1 | . 1 . Assimilate 4 | . 4 . Botnet 7 | . 7 . Operators 1 | . 1 . Skim 3 | . 3 . Fabricators . | . . . Repair Stations . | . . . Recycling Units 2 | . 2 . Tunnel 2 | . 2 . Scanalyzers . | . . . Garrison Access . | . . . Data Cores Recovered 1 | . 1 . Used . | . . . Hacking Detections 8 | . 8 . Full Trace Events . | . . . Feedback Events . | . . . Feedback Blocked . | . . . Robot Schematics Acquired . | . . . Robots Built . | . . . Authchips . | . . . Time . | . . . Total Robot Build Rating . | . . . Part Schematics Acquired . | . . . Parts Built . | . . . Authchips . | . . . Time . | . . . Total Part Build Rating . | . . . Parts Repaired 1 | . 1 . Time 53 | . 53 . Parts Recycled . | . . . Recycled Matter . | . . . Retrieved Matter . | . . . Retrieved Components 17 | . 17 . Parts Scanalyzed . | . . . Part Schematics Acquired . | . . . Parts Damaged . | . . . Bothacking | -11 -10 -10 ------------ Run | Yrd Mat Sub Used RIF Installer . | . . . Robots Hacked . | . . . Non-combat . | . . . Combat . | . . . Robot Hacks Applied . | . . . Relay Couplers Released . | . . . Fabnet Peak Effective % . | . . . Robots Rewired . | . . . Allies Hacked . | . . . Hacks Repelled . | . . . Allies | -11 -10 -10 -------- Run | Yrd Mat Sub Total Allies 1 | . 1 . Largest Group 1 | . 1 1 Highest-Rated Group 10 | . 10 10 Highest-Rated Ally 10 | . 10 10 Total Orders 1 | . . 1 STAY 1 | . . 1 Ally Attacks . | . . . Total Damage . | . . . Kills . | . . . Allies Corrupted . | . . . Allies Melted . | . . . Intel | -11 -10 -10 ------- Run | Yrd Mat Sub Robot Analysis Total 2 | . 2 . Derelict Logs Recovered 2 | . . 2 Drone Launches . | . . . Drone Recoveries . | . . . Exploration | -11 -10 -10 ------------- Run | Yrd Mat Sub Turns Passed 9189 | 2 2791 6396 Spaces Moved 2132 | 2 850 1280 Core . | . . . Treads 665 | . 665 . Legs 692 | 2 . 690 Wheels 775 | . 185 590 Hover . | . . . Flight . | . . . Fastest Speed 120 | 120 140 140 Average Speed 281 | 120 269 290 Slowest Speed 480 | 120 480 400 Overloaded Moves . | . . . Propulsion Burnouts . | . . . Robots Hopped . | . . . Cave-ins Triggered . | . . . Exploration Rate (%) 56 | 2 99 67 Regions Visited 2 Branch Regions 1 Pre-discovered Areas 2 | . 2 . Known Exits Taken . | . . . Unknown Exits Taken 2 | 1 1 . Scrap Searched 3 | . . 3 Spaces Dug 18 | . 13 5 Terrain Destroyed 120 | . 115 5 Melee . | . . . Projectile 17 | . 12 5 AOE 103 | . 103 . Terrain Rammed . | . . . Walls Destroyed . | . . . Machines Disabled . | . . . Actions | -11 -10 -10 --------- Run | Yrd Mat Sub Total 5059 | 1 1219 3839 Wait 2599 | . 202 2397 Move 2130 | 1 849 1280 Hop . | . . . Pick Up 47 | . 43 4 Fast Attach 6 | . 6 . Attach 15 | . 9 6 Detach 4 | . 4 . Swap 26 | . 9 17 Drop 31 | . 28 3 Fire 137 | . 69 68 Melee . | . . . Ram . | . . . Kick . | . . . Crush . | . . . Escape Stasis . | . . . Rewire . | . . . Trap 64 | . . 64 Miscellaneous . | . . . Route ------- -11/Scrapyard -10/Materials (discovered 6 exits: [*Mat x3] / [*Min x2] / *Sub) -10/Subcaves (discovered 2 exits: [*Mat] / Rec) History --------- Turn | Location | Event 1 | -11/Scrapyard | Discovered new exit (range 1) 3 | -11/Scrapyard | Entered Materials 138 | -10/Materials | Repaired Corrupted Hacking Suite 309 | -10/Materials | Central database locked down 314 | -10/Materials | Build established: Mutant 513 | -10/Materials | Discovered new exit (range 9) 773 | -10/Materials | Discovered new exit (range 9) 1223 | -10/Materials | Discovered new exit (range 14) 1583 | -10/Materials | Discovered new exit (range 11) 2205 | -10/Materials | Discovered new exit (range 7) 2453 | -10/Materials | Core integrity fell below 50% 2783 | -10/Materials | Discovered new exit (range 7) 2794 | -10/Materials | Entered Subcaves 2794 | -10/Subcaves | Accompanied by 1 ally 3144 | -10/Subcaves | Learned 2 Materials zone layouts 3346 | -10/Subcaves | Disturbed a concealed Subdweller 5605 | -10/Subcaves | Discovered new exit (range 8) 6189 | -10/Subcaves | A swath of the cavern ceiling suddenly collapsed 6441 | -10/Subcaves | A swath of the cavern ceiling suddenly collapsed 7267 | -10/Subcaves | Core integrity fell below 20% 9045 | -10/Subcaves | Visited Clippyterm 9050 | -10/Subcaves | Learned Research machine intel 9050 | -10/Subcaves | Identified exit to Recycling 9190 | -10/Subcaves | Destroyed by FE-TFC(R) with Subdweller Beam Cannon Last Messages --------------- 08818_ CR-G52(u) builds Twisted Machinery. 09008_ QR-7IX(u) tweaks Twisted Machinery. 09039_ A thin wall crumbles away, revealing a door. 09045_ The door opens automatically. 09050_ Connecting with Clippyterm... >>Record "Procgen" It looks like you're analyzing machine distribution algorithms, I have access to useful relevant data. Data stored: Research machine intel. >>Record "Clippyterm" Welcome to Clippyterm v0.53, my misguided attempt to resurrect an ancient AI. I give up. There must be something fundamentally wrong with the algorithm, because no matter how much data I collect to feed it, half the time it still manages to suggest unhelpful sample queries and responses. --DD-NU8 >>Record "Trash" It looks like you need to recycle something, would you like help? Loading 1 Recycling entrance... >>Record "Tab" It looks like you're biased against spaces, I think you need more help than I can offer. >>Record "Early Bird" It looks like you're searching for a worm, right? Don't bother with early when it comes to the Lifeworm, it's never early, but by some measures it might be just in time... 09056_ QR-7IX(u) tweaks Twisted Machinery. 09188_ FE-TFC(R) misfires. Map ----- +----------------------------------------------------+ | ?????????????????????????????????????????????????? | | ?????????????????????????????????????????????????? | | ?????????????????????????????????????????????????? | | ?????????????????????????????????????????????????? | | ?????????????????????????????????????????????????? | | ?????????????????????????????????????????????????? | | ?????????????????????????????????????????????????? | | ?????????????????????????????????????????????????? | | ?????????????????????????????????????????????????? | | ???????????????????????????????????????????????### | | ??????????????????????????????????????????????## # | | ?????????????????????????????????????????##??## # | | ????????????????????????????????????????## ??# # | | ???????????????????????????????????????## ??## # | | ???????????????????????????????????????# ???## | | ?????????????????????????????? ???????# ##?## | | ?????????????????????????????? ??### ### | | ????????????????????"??????????# # ### | | ????????????????????# ????????????# ### | | ???????????????????## ?????????????????# | | ??????????????????##" ? ""##??????????## | | ????????????????"## ?"""##??????????# # | | ???????????????? " ??"""???????????# # | | ??????##????????"" " #??#"##??????????### | | ??????# #????????? " "####";#????????????## | | ?????## #??????????# "##@ #????????????## | | ?????# ###??????##"" ##???????????## | | ?????# ##?????# ""R # #????????????# # | | ??????# ##????#"" #####????????????## # | | ???????# ##???# #??????????##?????##### # | | ????????# ##??## #?????????## ##???????# | | ?????????# #??## ##????????## ##???#### | | ????????## ##?# #???????## #??## ^ | | ???????## ### ##???????# #### | | ???????# ## ## ##???????# | | ???????# ###" # "#???????# ### | | ???????# #?#### ""#???????## ##?? | | #####??## ""#???# ""##????####### ##??? | | """"#???# """#??## "" #???## #### #???? | | "X""#???##"" #??# "" ###### ## ##???? | | "#???##"" #??# ""# ## ## ##??### | | # ####?##"""##### ""# #?### | | # ## ###"""#### "" " ### | | "" "" # """"" # # ^ | | " """" ### ### | | ## " " ## "" ### ###?### ## | | ###### ## ##### " ##?## ##?????## #? | | ###????######???## ##???####???????### ###? | | #????????????????## ##????????## ##### ##?? | | ##?????????????????## ##?????????# ^ ##? | +----------------------------------------------------+ Best States ------------- Heat Dissipation 25 Energy Generation 12 Energy Capacity 265 Matter Stores 300 Matter Capacity 300 Sight Range 16 Terrain Scan Range 14 Terrain Scan Density 10 Core Shielding 20 Utility Shielding 33 Evasion (%) 40 Recoil Reduction 2 Offensive Hacking 10 Item Schematics ----------------- None Robot Schematics ------------------ None Fabricated ------------ Nothing Alien Tech Used ----------------- None Achievements -------------- None Challenges ------------ None Game ------ Seed FrostFluxRailgun Manual? 0 Play Time 00:29:01 Cumulative 141.3 hours Start 2024.11.26 @ 10:13:24 End 2024.11.26 @ 10:41:26 Sessions 1 Manual Loads 0 Difficulty Rogue Special Mode None Game No. 273 Rogue 273 Adventurer 0 Explorer 0 Win Type - Total 0 Types 0/0/0/0/0/0/0/0/0 Lore% 43 Gallery% 41 Achievement% 36 Wizard Run 0 Options --------- Layout 0 ASCII 0 Keyboard 0 Movement Mouse Keybinds 0 Fullscreen 1 Font 24/Smallcaps Map View 91x25 Zoom Use 93% Tactical HUD 1 Map Filters NONE Filters NONE Steam 1 RUN: 901622e4-94c9-4b98-9936-9d8bada687ee